[Event "Prague Festival Open 2019"]
[Site "Prague"]
[Date "2019.03.09"]
[Round "1.3"]
[White "Zubov, Alexander"]
[Black "Haase, Pavel"]
[Result "1-0"]
[ECO "D80"]
[WhiteElo "2605"]
[BlackElo "2137"]
[Annotator "ChessBase"]
[PlyCount "63"]
[EventDate "2019.02.28"]
[EventType "tourn"]
[EventCountry "CZE"]
[SourceTitle "playchess.com"]
[Source "ChessBase"]
[SourceQuality "1"]
[TimeControl "40/5400+30:1800+30"]

1. d4 {[%emt 0:00:00]} Nf6 {[%emt 0:00:00]} 2. c4 {[%emt 0:00:06]} g6 {[%emt 0:00:00]} 3. Nc3 {[%emt 0:00:26]} d5 {[%emt 0:00:55]} 4. e3 {[%emt 0:02:48]} Bg7 {[%emt 0:00:51]} 5. Qb3 {[%emt 0:00:44]} c6 {[%emt 0:03:25]} 6. Nf3 {[%emt 0:00:07]} O-O {[%emt 0:00:28]} 7. Be2 {[%emt 0:00:20]} b6 {[%emt 0:03:35]} 8. O-O {[%emt 0:01:00]} Ba6 {[%emt 0:01:57]} 9. Rd1 {[%emt 0:04:16]} Qc7 {[%emt 0:02:38]} 10. a4 {[%emt 0:08:43]} Nbd7 {[%emt 0:05:19]} 11. Bd2 {[%emt 0:10:28]} e5 {[%emt 0:06:27]} 12. Rac1 {[%emt 0:09:38]} exd4 {[%emt 0:07:15]} 13. exd4 {[%emt 0:00:41]} Ne4 {[%emt 0:05:17]} 14. cxd5 {[%emt 0:03:46]} Nxc3 {[%emt 0:00:52]} 15. Bxa6 {[%emt 0:00:05]} Nxd1 {[%emt 0:00:16]} 16. dxc6 {[%emt 0:00:08]} Nc5 {[%emt 0:06:19]} 17. dxc5 {[%emt 0:00:47]} Nxb2 {[%emt 0:00:18]} 18. Bc3 {[%emt 0:03:25]} Bxc3 {[%emt 0:00:59]} 19. Rxc3 {[%emt 0:00:06]} bxc5 {[%emt 0:07:37]} 20. Qxb2 {[%emt 0:00:47]} Qxc6 {[%emt 0:01:26]} 21. Bb5 {[%emt 0:01:10]} Qf6 {[%emt 0:02:00]} 22. Qc2 {[%emt 0:01:26]} Rad8 {[%emt 0:02:31]} 23. g3 {[%emt 0:04:00]} Rd5 {[%emt 0:09:18]} 24. Kg2 {[%emt 0:00:28]} Rf5 {[%emt 0:02:26]} 25. h4 {[%emt 0:03:34]} h6 {[%emt 0:03:26]} 26. Re3 {[%emt 0:00:36]} Kg7 {[%emt 0:02:27]} 27. Bd3 {[%emt 0:08:06]} Rd5 {[%emt 0:00:52]} 28. Be4 {[%emt 0:01:36]} Rd6 {[%emt 0:02:14]} 29. Qxc5 {[%emt 0:00:19]} Ra6 {[%emt 0:00:50]} 30. Ne5 {[%emt 0:11:24]} Qd6 {[%emt 0:04:22]} 31. Qc3 {[%emt 0:02:06]} Kh7 {[%emt 0:00:42]} 32. h5 {[%emt 0:02:07]} 1-0

[Event "Prague Festival Open 2019"]
[Site "Prague"]
[Date "2019.03.09"]
[Round "1.4"]
[White "Burnett, Andrew"]
[Black "Bernadskiy, Vitaliy"]
[Result "0-1"]
[ECO "B06"]
[WhiteElo "2134"]
[BlackElo "2581"]
[Annotator "RC"]
[PlyCount "84"]
[EventDate "2019.02.28"]
[EventType "tourn"]
[EventCountry "CZE"]
[SourceTitle "playchess.com"]
[Source "ChessBase"]
[SourceQuality "1"]
[TimeControl "40/5400+30:1800+30"]

1. d4 {[%emt 0:00:00]} g6 {[%emt 0:01:52]} 2. e4 {[%emt 0:00:00]} Bg7 {[%emt 0:00:04]} 3. Nc3 {[%emt 0:00:29]} a6 {[%emt 0:00:03]} 4. Be3 {[%emt 0:00:23]} b5 {[%emt 0:00:13]} 5. Bd3 {[%emt 0:00:55]} d6 {[%emt 0:00:32]} 6. Qd2 {[%emt 0:00:42]} Nd7 {[%emt 0:00:26]} 7. a4 {[%emt 0:00:58]} b4 {[%emt 0:00:10]} 8. Nce2 {[%emt 0:00:27]} c5 {[%emt 0:00:44]} 9. Nf3 {[%emt 0:05:21]} Qc7 {[%emt 0:00:20]} 10. Nf4 {[%emt 0:11:38]} Ngf6 {[%emt 0:01:09]} 11. Nd5 {[%emt 0:10:23]} Nxd5 {[%emt 0:00:22]} 12. exd5 {[%emt 0:00:07]} c4 {[%emt 0:01:10]} 13. Be2 {[%emt 0:03:58]} c3 {[%emt 0:00:07]} 14. bxc3 {[%emt 0:00:34]} bxc3 {[%emt 0:00:05]} 15. Qc1 {[%emt 0:02:08]} h6 {[%emt 0:00:27]} 16. Ng1 {[%emt 0:11:18]} Nf6 {[%emt 0:01:01]} 17. Bf3 {[%emt 0:00:19]} Bb7 {[%emt 0:02:12]} 18. Ne2 {[%emt 0:00:43]} Bxd5 {[%emt 0:00:24]} 19. Bxd5 {[%emt 0:01:02]} Nxd5 {[%emt 0:00:04]} 20. O-O {[%emt 0:00:34]} Rc8 {[%emt 0:00:18]} 21. Rd1 {[%emt 0:02:20]} Qa5 {[%emt 0:03:35]} 22. Ra3 {[%emt 0:04:20]} Rc4 {[%emt 0:01:23]} 23. Rd3 {[%emt 0:04:03]} Rxa4 {[%emt 0:02:21]} 24. Rxa4 {[%emt 0:00:17]} Qxa4 {[%emt 0:00:03]} 25. Nxc3 {[%emt 0:01:18]} Nxc3 {[%emt 0:00:06]} 26. Rxc3 {[%emt 0:00:07]} O-O {[%emt 0:00:21]} 27. Qa3 {[%emt 0:02:38]} Qxa3 {[%emt 0:02:05]} 28. Rxa3 {[%emt 0:00:09]} f5 {[%emt 0:00:55]} 29. f3 {[%emt 0:04:07]} f4 {[%emt 0:03:55]} 30. Bf2 {[%emt 0:02:48]} Rc8 {[%emt 0:00:05]} 31. c3 {[%emt 0:01:18]} a5 {[%emt 0:00:17]} 32. Kf1 {[%emt 0:00:28]} a4 {[%emt 0:01:35]} 33. Rxa4 {[%emt 0:03:49]} Rxc3 {[%emt 0:00:05]} 34. Ke2 {[%emt 0:01:35]} Rc2+ {[%emt 0:00:06]} 35. Ke1 {[%emt 0:00:20]} Kf7 {[%emt 0:00:10]} 36. g3 {[%emt 0:00:43]} Rc1+ {[%emt 0:01:19]} 37. Ke2 {[%emt 0:00:27]} Rh1 {[%emt 0:00:26]} 38. d5 {[%emt 0:00:34]} Be5 {[%emt 0:00:32]} 39. gxf4 {[%emt 0:00:28]} Bf6 {[%emt 0:00:03]} 40. Bg3 {[%emt 0:03:27]} h5 {[%emt 0:00:06]} 41. Bf2 {[%emt 0:35:25]} h4 {[%emt 0:31:23]} 42. f5 {[%emt 0:01:39]} g5 {[%emt 0:03:11]} 0-1